fUST/lending_fUST_20241217
["ID","MTS","AMOUNT","RATE_DAILY","PERIOD"]
[345728544,1734436248193,-10421.4,0.00026301,6]
[345728545,1734436248202,-500.0,0.00026301,6]
[345728546,1734436248213,-500.0,0.00026301,6]
[345728547,1734436248223,-500.0,0.00026301,6]
[345728548,1734436248232,-653.91,0.00026301,6]
[345728549,1734436248243,-3762.7,0.00026301,6]
[345728550,1734436248253,-697.89,0.00026301,6]
[345728551,1734436248263,-577.49,0.00026301,6]
[345728552,1734436248273,-500.0,0.00026301,6]
[345728553,1734436248283,-587.84,0.00026301,6]
[345728554,1734436248293,-500.0,0.00026301,6]
[345728555,1734436248303,-1322.21,0.00026301,6]
[345728556,1734436248313,-744.21,0.00026301,6]
[345728557,1734436248323,-500.0,0.00026301,6]
[345728558,1734436248333,-500.0,0.00026301,6]
[345728559,1734436248344,-500.0,0.00026301,6]
[345728560,1734436248355,-2808.11,0.00026301,5]
[345728561,1734436248366,-513.5,0.00026301,6]
[345728562,1734436248376,-579.35,0.00026301,6]
[345728563,1734436248386,-520.39,0.00026301,6]
[345728564,1734436248396,-481.32742704,0.00026301,6]
[345728565,1734436248405,-500.0,0.00026301,6]
[345728566,1734436248415,-520.88,0.00026301,6]
[345728567,1734436248424,-240.65743624,0.00026301,6]
[345728568,1734436248434,-500.0,0.00026301,6]
[345728569,1734436248444,-500.0,0.00026301,6]
[345728570,1734436248454,-500.0,0.00026301,6]
[345728571,1734436248464,-500.0,0.00026301,6]
[345728572,1734436248474,-500.0,0.00026301,6]
[345728573,1734436248484,-500.0,0.00026301,6]
[345728574,1734436248494,-500.0,0.00026301,6]
[345728575,1734436248504,-236.0791519,0.00026301,6]
[345728576,1734436248514,-2503.44,0.000264,4]
[345728577,1734436248524,-181.03682094,0.000264,2]
[345728578,1734436248534,-1727.04,0.000264,14]
[345728579,1734436248544,-2697.75081124,0.000264,2]
[345728580,1734436248554,-5000.0,0.0002645,5]
[345728581,1734436248564,-151.0,0.00026489,2]
[345728582,1734436248574,-473.44683811,0.00026495,2]
[345728583,1734436248583,-500.0,0.00026495,2]
[345728584,1734436248593,-500.0,0.00026495,2]
[345728585,1734436248604,-608.0933036,0.00026495,2]
[345728586,1734436248614,-500.0,0.00026495,2]
[345728587,1734436248623,-197.32604464,0.00026495,2]
[345728588,1734436248633,-500.0,0.00026495,2]
[345728589,1734436248643,-500.0,0.00026495,2]
[345728590,1734436248653,-500.0,0.00026495,2]
[345728591,1734436248662,-500.0,0.00026495,2]
[345728592,1734436248672,-500.0,0.00026495,2]
[345728593,1734436248682,-500.0,0.00026495,2]
[345728594,1734436248693,-500.0,0.00026495,2]
[345728595,1734436248703,-500.0,0.00026495,2]
[345728596,1734436248712,-500.0,0.00026495,2]
[345728597,1734436248722,-500.0,0.00026495,2]
[345728598,1734436248732,-500.0,0.00026495,2]
[345728599,1734436248742,-500.0,0.00026495,2]
[345728600,1734436248751,-500.0,0.00026495,2]
[345728601,1734436248761,-500.0,0.00026495,2]
[345728602,1734436248771,-500.0,0.00026495,2]
[345728603,1734436248781,-500.0,0.00026495,2]
[345728604,1734436248792,-500.0,0.00026495,2]
[345728605,1734436248802,-500.0,0.00026495,2]
[345728606,1734436248812,-500.0,0.00026495,2]
[345728607,1734436248822,-315.56618314,0.00026495,2]
[345728608,1734436248832,-500.0,0.00026495,2]
[345728609,1734436248843,-500.0,0.00026495,2]
[345728610,1734436248858,-598.99474393,0.00026495,2]
[345728611,1734436248868,-500.0,0.00026495,2]
[345728612,1734436248879,-500.0,0.00026495,2]
[345728613,1734436248889,-279.7094701,0.00026495,2]
[345728614,1734436248900,-500.0,0.00026495,2]
[345728615,1734436248910,-500.0,0.00026495,2]
[345728616,1734436248921,-500.0,0.00026495,2]
[345728617,1734436248931,-500.0,0.00026495,2]
[345728618,1734436248942,-500.0,0.00026495,2]
[345728619,1734436248953,-500.0,0.00026495,2]
[345728620,1734436248963,-500.0,0.00026495,2]
[345728621,1734436248974,-500.0,0.00026495,2]
[345728622,1734436248984,-500.0,0.00026495,2]
[345728623,1734436248994,-500.0,0.00026495,2]
[345728624,1734436249005,-500.0,0.00026495,2]
[345728625,1734436249015,-500.0,0.00026495,2]
[345728626,1734436249026,-500.0,0.00026495,2]
[345728627,1734436249036,-500.0,0.00026495,2]
[345728628,1734436249046,-500.0,0.00026495,2]
[345728629,1734436249056,-500.0,0.00026495,2]
[345728630,1734436249066,-500.0,0.00026495,2]
[345728631,1734436249076,-500.0,0.00026495,2]
[345728632,1734436249086,-393.89735117,0.00026495,2]
[345728633,1734436249098,-370.93061685,0.00026495,2]
[345728634,1734436249108,-500.0,0.00026495,2]
[345728635,1734436249118,-500.0,0.00026495,2]
[345728636,1734436249129,-500.0,0.00026495,2]
[345728637,1734436249140,-500.0,0.00026495,2]
[345728638,1734436249150,-500.0,0.00026495,2]
[345728639,1734436249164,-500.0,0.00026495,2]
[345728640,1734436249178,-500.0,0.00026495,2]
[345728641,1734436249188,-500.0,0.00026495,2]
[345728642,1734436249199,-500.0,0.00026495,2]
[345728643,1734436249210,-500.0,0.00026495,2]
[345728644,1734436249220,-500.0,0.00026495,2]
[345728645,1734436249231,-500.0,0.00026495,2]
[345728646,1734436249247,-500.0,0.00026495,2]
[345728647,1734436249258,-158.11463078,0.00026499,2]
[345728648,1734436249270,-401.47550475,0.00026499,2]
[345728649,1734436249281,-58069.71770221,0.000265,5]
[345728650,1734436249292,-192741.21718476,0.000265,5]
[345728651,1734436249302,-2000.0,0.000265,2]
[345728652,1734436249315,-392260.07035677,0.000265,5]
[345728653,1734436249427,-1713.98,0.00025753,6]
[345728654,1734436249437,-1713.98,0.00026027,6]
[345728655,1734436249447,-1176.19674882,0.000265,5]
[345728656,1734436249458,-4000.00000002,0.000265,5]
[345728657,1734436249469,-1504.95,0.000265,5]
[345728658,1734436249481,-17509.20952992,0.000265,5]
[345728667,1734436980724,166.364037,0.00013973,2]
[345728725,1734437435974,-250.0,0.00023219,2]
[345728727,1734437435984,-3175.6421266,0.0002323,2]
[345728729,1734437435994,-1147.0,0.0002341,2]
[345728731,1734437436003,-269.5187306,0.00023411,2]
[345728733,1734437436012,-214.4261398,0.000235,2]
[345728735,1734437436021,-358.8552487,0.00023518,11]
[345728737,1734437436031,-390.6258264,0.00023623,2]
[345728740,1734437436040,-319.0263002,0.00023637,2]
[345728742,1734437436049,-194.42585979,0.00024556,2]
[345728744,1734437436060,-450.96922935,0.00024557,2]
[345728746,1734437436069,-194.42585979,0.00024557,2]
[345728748,1734437436079,-300.0,0.00024591,2]
[345728750,1734437436088,-300.0,0.00024591,2]
[345728752,1734437436097,-5163.78649432,0.00024592,2]
[345728754,1734437436106,-185.772,0.00024656,7]
[345728755,1734437436116,-500.0,0.00024657,2]
[345728757,1734437436125,-308.31410103,0.00024657,2]
[345728759,1734437436135,-500.0,0.00024657,6]
[345728761,1734437436145,-500.0,0.00024657,6]
[345728763,1734437436155,-518.75750927,0.00024657,2]
[345728766,1734437436164,-500.0,0.00024657,2]
[345728767,1734437436174,-500.0,0.00024657,6]
[345728770,1734437436185,-500.0,0.00024657,2]
[345728771,1734437436199,-500.0,0.00024657,6]
[345728773,1734437436209,-331.5,0.00024657,6]
[345728776,1734437436218,-500.0,0.00024657,6]
[345728778,1734437436228,-500.0,0.00024657,6]
[345728779,1734437436237,-500.0,0.00024657,6]
[345728781,1734437436246,-500.0,0.00024657,6]
[345728783,1734437436256,-500.0,0.00024657,6]
[345728785,1734437436266,-500.0,0.00024657,6]
[345728787,1734437436275,-500.0,0.00024657,6]
[345728789,1734437436285,-1480.88,0.00024657,2]
[345728791,1734437436294,-168.0,0.00024657,6]
[345728793,1734437436304,-500.0,0.00024657,6]
[345728795,1734437436314,-500.0,0.00024657,6]
[345728798,1734437436324,-500.0,0.00024657,6]
[345728800,1734437436333,-500.0,0.00024657,6]
[345728801,1734437436342,-500.0,0.00024657,6]
[345728803,1734437436352,-500.0,0.00024657,6]
[345728805,1734437436361,-500.0,0.00024657,6]
[345728808,1734437436371,-500.0,0.00024657,6]
[345728809,1734437436380,-500.0,0.00024657,6]
[345728811,1734437436390,-500.0,0.00024657,2]
[345728813,1734437436399,-500.0,0.00024657,6]
[345728815,1734437436409,-500.0,0.00024657,6]
[345728817,1734437436418,-500.0,0.00024657,6]
[345728819,1734437436428,-500.0,0.00024657,6]
[345728821,1734437436445,-501.52402325,0.00024657,2]
[345728823,1734437436455,-500.0,0.00024657,6]
[345728825,1734437436465,-500.0,0.00024657,6]
[345728827,1734437436474,-500.0,0.00024657,6]
[345728829,1734437436483,-1487.13,0.00024657,6]
[345728831,1734437436492,-1844.47,0.00024657,6]
[345728833,1734437436501,-500.0,0.00024657,6]
[345728835,1734437436510,-500.0,0.00024657,6]
[345728837,1734437436520,-500.0,0.00024657,6]
[345728839,1734437436529,-173.8599331,0.00024657,6]
[345728841,1734437436538,-500.0,0.00024657,6]
[345728843,1734437436547,-500.0,0.00024657,6]
[345728845,1734437436556,-500.0,0.00024657,6]
[345728847,1734437436566,-2137.34,0.00024657,6]
[345728849,1734437436575,-500.0,0.00024657,6]
[345728851,1734437436584,-500.0,0.00024657,6]
[345728853,1734437436594,-500.0,0.00024657,6]
[345728855,1734437436603,-3107.91,0.00024657,6]
[345728857,1734437436612,-500.0,0.00024657,6]
[345728859,1734437436625,-500.0,0.00024657,6]
[345728861,1734437436634,-500.0,0.00024657,6]
[345728863,1734437436643,-474.6435149,0.00024657,6]
[345728865,1734437436652,-500.0,0.00024657,6]
[345728867,1734437436663,-500.0,0.00024657,6]
[345728869,1734437436672,-500.0,0.00024657,6]
[345728871,1734437436681,-500.0,0.00024657,6]
[345728873,1734437436705,-500.0,0.00024657,6]
[345728875,1734437436715,-540.12,0.00024657,6]
[345728878,1734437436725,-500.0,0.00024657,6]
[345728880,1734437436737,-472.83913672,0.00024657,6]
[345728882,1734437436747,-500.0,0.00024657,6]
[345728884,1734437436756,-475.97163632,0.00024657,6]
[345728886,1734437436765,-2319.44,0.00024657,5]
[345728888,1734437436777,-576.44,0.00024657,6]
[345728890,1734437436786,-500.0,0.00024657,6]
[345728892,1734437436795,-500.0,0.00024657,6]
[345728894,1734437436805,-6291.55,0.00024657,6]
[345728896,1734437436813,-500.0,0.00024657,6]
[345728898,1734437436823,-1092.12,0.00024657,6]
[345728900,1734437436832,-614.71,0.00024657,6]
[345728902,1734437436841,-500.0,0.00024657,6]
[345728904,1734437436851,-500.0,0.00024657,6]
[345728906,1734437436860,-392.54804584,0.00024657,6]
[345728908,1734437436869,-500.0,0.00024657,6]
[345728910,1734437436879,-500.0,0.00024657,6]
[345728912,1734437436888,-500.0,0.00024657,6]
[345728914,1734437436897,-500.0,0.00024657,6]
[345728916,1734437436906,-500.0,0.00024657,6]
[345728917,1734437436915,-500.0,0.00024657,6]
[345728919,1734437436923,-500.0,0.00024657,6]
[345728921,1734437436936,-500.0,0.00024657,6]
[345728923,1734437436950,-500.0,0.00024657,6]
[345728925,1734437436959,-536.47339765,0.00024657,6]
[345728927,1734437436967,-500.0,0.00024657,6]
[345728929,1734437436977,-500.0,0.00024657,6]
[345728931,1734437436986,-500.0,0.00024657,6]
[345728933,1734437436995,-500.0,0.00024657,2]
[345728935,1734437437004,-500.0,0.00024657,6]
[345728937,1734437437013,-500.0,0.00024657,6]
[345728939,1734437437023,-500.0,0.00024657,2]
[345728941,1734437437032,-500.0,0.00024657,6]
[345728943,1734437437041,-500.0,0.00024657,2]
[345728944,1734437437050,-1184.66,0.00024657,6]
[345728946,1734437437060,-500.0,0.00024657,6]
[345728948,1734437437070,-500.0,0.00024657,6]
[345728950,1734437437081,-3000.0,0.000249,2]
[345728952,1734437437090,-3000.0,0.000249,2]
[345728954,1734437437100,-3000.0,0.0002491,2]
[345728956,1734437437109,-3000.0,0.0002491,2]
[345728958,1734437437119,-3000.0,0.0002492,2]
[345728960,1734437437129,-3000.0,0.0002492,2]
[345728962,1734437437138,-3000.0,0.0002493,2]
[345728965,1734437437148,-3000.0,0.0002493,2]
[345728966,1734437437158,-500.0,0.00024931,6]
[345728968,1734437437167,-500.0,0.00024931,6]
[345728970,1734437437177,-500.0,0.00024931,2]
[345728972,1734437437198,-500.0,0.00024931,6]
[345728974,1734437437211,-500.0,0.00024931,2]
[345728976,1734437437221,-500.0,0.00024931,6]
[345728978,1734437437231,-500.0,0.00024931,6]
[345728980,1734437437240,-500.0,0.00024931,6]
[345728982,1734437437250,-500.0,0.00024931,6]
[345728984,1734437437259,-500.0,0.00024931,6]
[345728986,1734437437268,-500.0,0.00024931,6]
[345728988,1734437437278,-500.0,0.00024931,6]
[345728990,1734437437287,-500.0,0.00024931,6]
[345728992,1734437437297,-1480.88,0.00024931,2]
[345728994,1734437437306,-168.0,0.00024931,6]
[345728996,1734437437315,-500.0,0.00024931,6]
[345728998,1734437437324,-323.42459928,0.00024931,6]
[345729000,1734437437333,-500.0,0.00024931,6]
[345729002,1734437437343,-500.0,0.00024931,6]
[345729004,1734437437352,-500.0,0.00024931,6]
[345729006,1734437437362,-500.0,0.00024931,6]
[345729008,1734437437371,-500.0,0.00024931,6]
[345729010,1734437437381,-500.0,0.00024931,6]
[345729012,1734437437391,-500.0,0.00024931,6]
[345729014,1734437437401,-500.0,0.00024931,2]
[345729017,1734437437411,-483.16934004,0.00024931,6]
[345729019,1734437437420,-500.0,0.00024931,6]
[345729020,1734437437429,-500.0,0.00024931,6]
[345729022,1734437437439,-500.0,0.00024931,6]
[345729024,1734437437448,-500.0,0.00024931,6]
[345729026,1734437437456,-500.0,0.00024931,6]
[345729028,1734437437466,-500.0,0.00024931,6]
[345729030,1734437437476,-1487.13,0.00024931,6]
[345729032,1734437437485,-1844.47,0.00024931,6]
[345729034,1734437437495,-500.0,0.00024931,6]
[345729036,1734437437504,-500.0,0.00024931,6]
[345729038,1734437437513,-500.0,0.00024931,6]
[345729040,1734437437522,-500.0,0.00024931,6]
[345729042,1734437437532,-2137.34,0.00024931,6]
[345729044,1734437437541,-500.0,0.00024931,6]
[345729046,1734437437550,-500.0,0.00024931,6]
[345729049,1734437437560,-3107.91,0.00024931,6]
[345729052,1734437437569,-500.0,0.00024931,6]
[345729054,1734437437579,-500.0,0.00024931,6]
[345729056,1734437437588,-500.0,0.00024931,6]
[345729059,1734437437598,-500.0,0.00024931,6]
[345729060,1734437437609,-500.0,0.00024931,6]
[345729062,1734437437620,-500.0,0.00024931,6]
[345729065,1734437437630,-500.0,0.00024931,6]
[345729067,1734437437639,-500.0,0.00024931,6]
[345729069,1734437437649,-540.12,0.00024931,6]
[345729072,1734437437658,-500.0,0.00024931,6]
[345729075,1734437437668,-500.0,0.00024931,6]
[345729078,1734437437677,-2319.44,0.00024931,5]
[345729080,1734437437700,-576.44,0.00024931,6]
[345729081,1734437437710,-500.0,0.00024931,6]
[345729083,1734437437720,-500.0,0.00024931,6]
[345729085,1734437437730,-6291.55,0.00024931,6]
[345729087,1734437437740,-500.0,0.00024931,6]
[345729089,1734437437749,-1092.12,0.00024931,6]
[345729091,1734437437759,-614.71,0.00024931,6]
[345729093,1734437437769,-500.0,0.00024931,6]
[345729095,1734437437779,-500.0,0.00024931,6]
[345729097,1734437437790,-500.0,0.00024931,6]
[345729099,1734437437799,-500.0,0.00024931,6]
[345729101,1734437437809,-500.0,0.00024931,6]
[345729103,1734437437818,-500.0,0.00024931,6]
[345729105,1734437437828,-500.0,0.00024931,6]
[345729107,1734437437838,-500.0,0.00024931,6]
[345729109,1734437437848,-614.87454533,0.00024931,6]
[345729111,1734437437858,-500.0,0.00024931,6]
[345729113,1734437437867,-500.0,0.00024931,6]
[345729115,1734437437876,-500.0,0.00024931,6]
[345729117,1734437437885,-500.0,0.00024931,6]
[345729119,1734437437895,-500.0,0.00024931,6]
[345729121,1734437437906,-500.0,0.00024931,2]
[345729123,1734437437916,-500.0,0.00024931,6]
[345729125,1734437437925,-500.0,0.00024931,6]
[345729127,1734437437935,-400.4,0.00024931,2]
[345729129,1734437437944,-500.0,0.00024931,6]
[345729131,1734437437953,-1184.66,0.00024931,6]
[345729132,1734437437962,-500.0,0.00024931,6]
[345729134,1734437437972,-500.0,0.00024931,6]
[345729136,1734437437981,-186.0,0.00024932,2]
[345729138,1734437437991,-3000.0,0.0002494,2]
[345729140,1734437438000,-3000.0,0.0002494,2]
[345729142,1734437438009,-3000.0,0.0002495,2]
[345729144,1734437438018,-3000.0,0.0002495,2]
[345729146,1734437438028,-3000.0,0.0002496,2]
[345729148,1734437438038,-3000.0,0.0002496,2]
[345729151,1734437438047,-3000.0,0.0002497,2]
[345729152,1734437438056,-3000.0,0.0002497,2]
[345729154,1734437438065,-3000.0,0.0002498,2]
[345729156,1734437438075,-3000.0,0.0002498,2]
[345729159,1734437438084,-3000.0,0.0002499,2]
[345729161,1734437438094,-3000.0,0.0002499,2]
[345729163,1734437438103,-3000.0,0.00025,2]
[345729165,1734437438113,-3000.0,0.00025,2]
[345729167,1734437438122,-186.0,0.00025,2]
[345729169,1734437438131,-3000.0,0.0002501,2]
[345729171,1734437438140,-3000.0,0.0002501,2]
[345729173,1734437438150,-3000.0,0.0002502,2]
[345729175,1734437438159,-3000.0,0.0002502,2]
[345729177,1734437438168,-450.9692293,0.00025027,2]
[345729179,1734437438177,-3000.0,0.0002503,2]
[345729181,1734437438193,-3000.0,0.0002503,2]
[345729183,1734437438211,-3000.0,0.0002504,2]
[345729185,1734437438220,-3000.0,0.0002504,2]
[345729187,1734437438230,-3000.0,0.0002505,2]
[345729189,1734437438240,-3000.0,0.0002505,2]
[345729191,1734437438250,-3000.0,0.0002506,2]
[345729193,1734437438259,-3000.0,0.0002506,2]
[345729195,1734437438269,-476.73225707,0.00025067,2]
[345729197,1734437438280,-3000.0,0.0002507,2]
[345729199,1734437438290,-3000.0,0.0002507,2]
[345729201,1734437438299,-500.0,0.00025073,2]
[345729203,1734437438309,-3000.0,0.0002508,2]
[345729205,1734437438320,-3000.0,0.0002508,2]
[345729207,1734437438329,-3000.0,0.0002509,2]
[345729209,1734437438339,-3000.0,0.0002509,2]
[345729211,1734437438348,-3000.0,0.000251,2]
[345729213,1734437438358,-3000.0,0.000251,2]
[345729215,1734437438368,-212.09043702,0.00025105,2]
[345729217,1734437438377,-3000.0,0.0002511,2]
[345729219,1734437438387,-3000.0,0.0002511,2]
[345729221,1734437438396,-3000.0,0.0002512,2]
[345729223,1734437438406,-3000.0,0.0002512,2]
[345729225,1734437438416,-3000.0,0.0002513,2]
[345729227,1734437438425,-3000.0,0.0002513,2]
[345729229,1734437438435,-3000.0,0.0002514,2]
[345729231,1734437438444,-3000.0,0.0002514,2]
[345729233,1734437438453,-4811.280697,0.0002515,2]
[345729235,1734437438463,-3000.0,0.0002515,2]
[345729237,1734437438472,-3000.0,0.0002516,2]
[345729239,1734437438481,-3000.0,0.0002517,2]
[345729241,1734437438491,-587.196,0.0002517,2]
[345729243,1734437438500,-3000.0,0.0002518,2]
[345729245,1734437438510,-3000.0,0.0002519,2]
[345729247,1734437438519,-500.0,0.0002519,2]
[345729249,1734437438528,-310.47541041,0.0002519,2]
[345729251,1734437438537,-366.25117417,0.0002519,2]
[345729253,1734437438547,-500.0,0.0002519,2]
[345729255,1734437438556,-3000.0,0.000252,2]
[345729257,1734437438566,-645.72742763,0.00025205,6]
[345729259,1734437438575,-500.0,0.00025205,2]
[345729261,1734437438584,-500.0,0.00025205,6]
[345729263,1734437438594,-501.21756681,0.00025205,2]
[345729265,1734437438603,-500.0,0.00025205,6]
[345729267,1734437438613,-500.0,0.00025205,6]
[345729269,1734437438625,-500.0,0.00025205,6]
[345729270,1734437438635,-500.0,0.00025205,6]
[345729273,1734437438644,-500.0,0.00025205,6]
[345729274,1734437438655,-500.0,0.00025205,6]
[345729277,1734437438665,-1480.88,0.00025205,2]
[345729278,1734437438674,-500.0,0.00025205,6]
[345729280,1734437438683,-500.0,0.00025205,6]
[345729282,1734437438699,-500.0,0.00025205,6]
[345729284,1734437438708,-500.0,0.00025205,6]
[345729287,1734437438718,-500.0,0.00025205,6]
[345729288,1734437438727,-500.0,0.00025205,6]
[345729291,1734437438738,-500.0,0.00025205,6]
[345729292,1734437438747,-500.0,0.00025205,6]
[345729294,1734437438756,-500.0,0.00025205,6]
[345729296,1734437438765,-500.0,0.00025205,6]
[345729298,1734437438775,-500.0,0.00025205,6]
[345729301,1734437438785,-1487.13,0.00025205,6]
[345729303,1734437438794,-1844.47,0.00025205,6]
[345729305,1734437438803,-254.1200669,0.00025205,6]
[345729307,1734437438813,-500.0,0.00025205,6]
[345729309,1734437438822,-500.0,0.00025205,6]
[345729310,1734437438831,-2137.34,0.00025205,6]
[345729312,1734437438841,-500.0,0.00025205,6]
[345729314,1734437438850,-500.0,0.00025205,6]
[345729316,1734437438859,-3107.91,0.00025205,6]
[345729318,1734437438868,-500.0,0.00025205,6]
[345729320,1734437438878,-500.0,0.00025205,6]
[345729322,1734437438887,-500.0,0.00025205,6]
[345729324,1734437438897,-500.0,0.00025205,6]
[345729326,1734437438907,-500.0,0.00025205,6]
[345729328,1734437438916,-500.0,0.00025205,6]
[345729330,1734437438926,-500.0,0.00025205,6]
[345729332,1734437438938,-540.12,0.00025205,6]
[345729334,1734437438952,-500.0,0.00025205,6]
[345729336,1734437438961,-2319.44,0.00025205,5]
[345729338,1734437438970,-576.44,0.00025205,6]
[345729340,1734437438980,-500.0,0.00025205,6]
[345729342,1734437438990,-500.0,0.00025205,6]
[345729344,1734437438999,-6291.55,0.00025205,6]
[345729346,1734437439008,-500.0,0.00025205,6]
[345729348,1734437439017,-1092.12,0.00025205,6]
[345729350,1734437439026,-614.71,0.00025205,6]
[345729352,1734437439035,-500.0,0.00025205,6]
[345729354,1734437439045,-500.0,0.00025205,6]
[345729356,1734437439054,-500.0,0.00025205,6]
[345729358,1734437439063,-500.0,0.00025205,6]
[345729360,1734437439072,-500.0,0.00025205,6]
[345729362,1734437439082,-500.0,0.00025205,6]
[345729364,1734437439091,-500.0,0.00025205,6]
[345729365,1734437439101,-500.0,0.00025205,6]
[345729366,1734437439110,-500.0,0.00025205,6]
[345729367,1734437439119,-500.0,0.00025205,6]
[345729368,1734437439128,-500.0,0.00025205,2]
[345729370,1734437439138,-500.0,0.00025205,6]
[345729371,1734437439147,-1184.66,0.00025205,6]
[345729372,1734437439157,-300.41260367,0.00025205,6]
[345729373,1734437439166,-3000.0,0.0002521,2]
[345729374,1734437439176,-3000.0,0.0002522,2]
[345729375,1734437439189,-3000.0,0.0002523,2]
[345729376,1734437439203,-3000.0,0.0002524,2]
[345729377,1734437439213,-3000.0,0.0002525,2]
[345729378,1734437439222,-3000.0,0.0002526,2]
[345729379,1734437439231,-3000.0,0.0002527,2]
[345729380,1734437439240,-3000.0,0.0002528,2]
[345729381,1734437439249,-3000.0,0.0002529,2]
[345729382,1734437439258,-3000.0,0.000253,2]
[345729383,1734437439267,-3000.0,0.0002531,2]
[345729384,1734437439276,-3000.0,0.0002532,2]
[345729386,1734437439287,-3000.0,0.0002533,2]
[345729388,1734437439296,-4188.719303,0.0002534,2]
[345729390,1734437439305,-150.964,0.00025376,2]
[345729392,1734437439315,-152.306,0.00025376,2]
[345729394,1734437439324,-207.76,0.00025377,2]
[345729396,1734437439334,-2154.0,0.00025377,2]
[345729398,1734437439343,-533.0,0.00025377,2]
[345729400,1734437439354,-2367.0,0.00025377,2]
[345729402,1734437439363,-500.0,0.00025387,2]
[345729404,1734437439373,-212.090437,0.00025429,2]
[345729406,1734437439382,-500.0,0.00025479,6]
[345729408,1734437439392,-500.0,0.00025479,6]
[345729410,1734437439401,-500.0,0.00025479,6]
[345729411,1734437439411,-500.0,0.00025479,6]
[345729414,1734437439422,-500.0,0.00025479,6]
[345729416,1734437439432,-500.0,0.00025479,6]
[345729434,1734437439592,-500.0,0.00025479,6]
[345729436,1734437439602,-1480.88,0.00025479,2]
[345729438,1734437439617,-500.0,0.00025479,6]
[345729441,1734437439627,-500.0,0.00025479,6]
[345729443,1734437439636,-500.0,0.00025479,6]
[345729446,1734437439645,-500.0,0.00025479,6]
[345729448,1734437439656,-500.0,0.00025479,6]
[345729450,1734437439665,-500.0,0.00025479,6]
[345729452,1734437439675,-500.0,0.00025479,6]
[345729454,1734437439688,-500.0,0.00025479,6]
[345729456,1734437439704,-500.0,0.00025479,6]
[345729458,1734437439713,-500.0,0.00025479,6]
[345729460,1734437439723,-500.0,0.00025479,6]
[345729462,1734437439732,-1487.13,0.00025479,6]
[345729466,1734437439742,-1844.47,0.00025479,6]
[345729468,1734437439751,-500.0,0.00025479,6]
[345729471,1734437439761,-438.78421628,0.00025479,6]
[345729473,1734437439771,-2137.34,0.00025479,6]
[345729476,1734437439780,-500.0,0.00025479,6]
[345729479,1734437439790,-500.0,0.00025479,6]
[345729482,1734437439799,-3107.91,0.00025479,6]
[345729485,1734437439808,-500.0,0.00025479,6]
[345729488,1734437439818,-500.0,0.00025479,6]
[345729492,1734437439827,-500.0,0.00025479,6]
[345729494,1734437439837,-500.0,0.00025479,6]
[345729497,1734437439847,-500.0,0.00025479,6]
[345729499,1734437439856,-500.0,0.00025479,6]
[345729502,1734437439868,-500.0,0.00025479,6]
[345729505,1734437439877,-540.12,0.00025479,6]
[345729509,1734437439887,-500.0,0.00025479,6]